bitfinex/quotes_ETHUSD_20250413
["timestamp","ask_amount","ask_price","bid_price","bid_amount"]
[1744538155186,6.15787,1624.0,1623.6,9.15911]
[1744538155391,7.614757,1624.0,1623.6,12.25411]
[1744538155592,6.25814,1623.9,1623.6,6.095]
[1744538155799,6.15863,1623.8,1623.6,6.095]
[1744538156212,7.12777127,1623.7,1623.6,6.095]
[1744538156416,8.5564114,1623.7,1623.6,6.095]
[1744538156622,6.15945,1623.6,1623.4,52.846]
[1744538156823,12.31896,1623.6,1623.4,52.846]
[1744538157019,14.99794013,1623.7,1623.4,52.846]
[1744538157227,14.99794013,1623.7,1623.4,59.00591]
[1744538157228,0.16750127,1623.5,1623.4,59.00591]
[1744538157427,0.1,1623.6,1623.4,59.00591]
[1744538158228,0.1,1623.6,1623.5,6.15953]
[1744538158405,0.1,1623.6,1623.5,6.86673]
[1744538159108,0.8015,1623.9,1623.6,6.15901]
[1744538159327,0.16750127,1623.8,1623.7,6.15862]
[1744538159510,6.95879,1624.1,1623.7,6.15862]
[1744538159710,0.26750127,1624.0,1623.8,6.15835]
[1744538159913,0.26750127,1624.0,1623.8,6.15821]
[1744538160095,0.26750127,1624.0,1623.9,6.15801]
[1744538160293,0.16750127,1624.0,1623.9,10.460352]
[1744538160598,0.02,1624.4,1624.1,12.31422]
[1744538160798,0.1,1624.3,1624.2,12.25087]
[1744538161124,0.02,1624.4,1624.3,6.15649]
[1744538161426,0.18663474,1624.4,1624.3,6.15649]
[1744538161721,0.28663474,1624.4,1624.2,12.25087]
[1744538161936,0.28663474,1624.4,1624.2,6.094]
[1744538162238,0.28663474,1624.4,1624.2,12.25085]
[1744538162627,0.28663474,1624.4,1624.2,14.16238]
[1744538162823,0.28663474,1624.4,1624.2,14.16222]
[1744538163137,0.28663474,1624.4,1624.2,14.1624]
[1744538163438,0.28663474,1624.4,1624.3,6.15649]
[1744538163934,0.28663474,1624.4,1624.2,14.16221]
[1744538164134,0.28663474,1624.4,1624.3,7.572711]
[1744538167941,0.28663474,1624.4,1624.3,8.279911]
[1744538168143,0.18663474,1624.4,1624.3,8.279911]
[1744538168528,0.18663474,1624.4,1624.3,11.279911]
[1744538168716,0.02,1624.4,1624.3,11.279911]
[1744538169512,0.02,1624.4,1624.3,12.04470741]
[1744538169934,0.02,1624.4,1624.3,11.279911]
[1744538171046,0.02,1624.4,1624.3,11.569911]
[1744538172512,0.02,1624.4,1624.3,11.279911]
[1744538174023,0.02,1624.4,1624.3,15.279911]
[1744538174228,1e-05,1624.4,1624.3,16.15728337]
[1744538176352,1e-05,1624.4,1624.3,18.15728337]
[1744538177251,1e-05,1624.4,1624.3,17.39248696]
[1744538177830,1e-05,1624.4,1624.3,19.77328696]
[1744538178245,0.16923487,1624.4,1624.3,6.0]
[1744538178651,1e-05,1624.4,1624.3,2.0]
[1744538178851,0.16923487,1624.4,1624.3,2.0]
[1744538179854,0.16923487,1624.4,1624.3,8.15649]
[1744538182220,0.26923487,1624.4,1624.3,8.15649]
[1744538182463,0.26923487,1624.4,1624.3,12.267331]
[1744538182627,0.26923487,1624.4,1624.3,15.974531]
[1744538182628,0.16923487,1624.4,1624.3,15.974531]
[1744538182828,1e-05,1624.4,1624.3,16.08710696]
[1744538183757,1e-05,1624.4,1624.3,20.08710696]
[1744538183923,1e-05,1624.4,1624.3,22.46790696]
[1744538184129,1e-05,1624.4,1624.3,23.17510696]
[1744538185060,1e-05,1624.4,1624.3,26.17510696]
[1744538185634,1e-05,1624.4,1624.3,22.17510696]
[1744538186860,1e-05,1624.4,1624.3,26.17510696]
[1744538187835,1e-05,1624.4,1624.3,22.17510696]
[1744538188647,1e-05,1624.4,1624.3,26.17510696]
[1744538193658,1e-05,1624.4,1624.3,26.93990337]
[1744538194672,1e-05,1624.4,1624.3,27.72996787]
[1744538199521,0.02,1625.4,1625.3,6.15271]
[1744538199726,0.02,1625.4,1625.3,12.854981]
[1744538200404,0.18195675,1625.4,1625.3,12.854981]
[1744538200639,0.02,1625.4,1625.3,15.854981]
[1744538201804,0.02,1625.4,1625.3,15.994981]
[1744538202107,0.8475,1625.4,1625.3,15.994981]
[1744538202283,0.8475,1625.4,1625.3,6.227]
[1744538202675,1.00945675,1625.4,1625.3,6.227]
[1744538203275,1.10945675,1625.4,1625.3,6.087]
[1744538203674,7.26178675,1625.4,1625.1,6.1534]
[1744538203889,0.8275,1625.2,1625.1,6.086]
[1744538204274,0.9275,1625.2,1625.1,12.23946]
[1744538204703,1.08945675,1625.2,1625.1,12.23946]
[1744538205009,0.9275,1625.2,1625.1,12.23946]
[1744538205376,1.08945675,1625.2,1625.1,12.23946]
[1744538205910,0.9275,1625.2,1625.1,12.23946]
[1744538206275,0.9275,1625.2,1625.1,14.518778]
[1744538207532,0.1,1625.2,1625.1,14.518778]
[1744538208218,0.8074,1625.4,1625.3,6.15271]
[1744538208591,0.96935675,1625.4,1625.3,6.15271]
[1744538208921,1.06935675,1625.4,1625.1,14.518708]
[1744538209090,0.8074,1625.4,1625.2,6.15304]
[1744538209295,0.8074,1625.4,1625.3,6.15271]
[1744538209593,1.06935675,1625.4,1625.3,6.15271]
[1744538210896,1.06935675,1625.4,1625.3,7.383274]
[1744538211291,1.06935675,1625.4,1625.1,20.532098]
[1744538211530,0.96935675,1625.4,1625.1,12.23934]
[1744538211689,0.96935675,1625.4,1625.3,6.15271]
[1744538211891,0.02,1625.4,1625.3,6.15271]
[1744538212089,0.18698408,1625.4,1625.3,6.15271]
[1744538213192,0.18698408,1625.4,1625.3,10.15271]
[1744538213527,0.18698408,1625.4,1625.3,11.783275]
[1744538215835,7.16621408,1625.4,1625.3,4.0]
[1744538216006,6.33931408,1625.4,1625.3,4.0]
[1744538216207,7.16621408,1625.4,1625.3,4.0]
[1744538216404,1.01388408,1625.4,1625.3,4.0]
[1744538217138,7.16621408,1625.4,1625.3,4.0]
[1744538217336,9.11324249,1625.4,1625.3,4.0]
[1744538217499,9.66324249,1625.4,1625.3,4.0]
[1744538217696,9.11324249,1625.4,1625.3,4.0]
[1744538218200,6.97961,1625.3,1625.0,6.15362]
[1744538218426,0.16568408,1625.2,1625.0,12.3073]
[1744538218626,0.16568408,1625.2,1625.0,18.4522596]
[1744538218920,0.8269,1625.3,1625.1,6.15346]
[1744538219126,0.8269,1625.3,1625.0,12.2985796]
[1744538219318,0.16568408,1625.2,1625.0,12.2985796]
[1744538219812,0.16568408,1625.2,1625.0,6.1449596]
[1744538220016,0.8269,1625.1,1624.9,71.2002]
[1744538220432,0.16568408,1625.0,1624.9,65.04607]
[1744538220726,0.8269,1625.1,1624.9,65.80607]
[1744538220922,0.16568408,1625.0,1624.9,65.80607]
[1744538221124,0.8269,1625.1,1624.9,66.89235032]
[1744538221325,0.16568408,1625.0,1624.9,6.881]
[1744538221508,6.98053,1625.1,1624.9,0.76]
[1744538221704,0.16568408,1625.0,1624.9,0.76]
[1744538222241,0.02,1625.4,1625.3,6.15271]
[1744538222404,0.02,1625.4,1625.3,9.15271]
[1744538222743,0.16851468,1625.4,1625.3,9.15271]
[1744538223117,0.16851468,1625.4,1625.3,11.295387]
[1744538224043,0.16851468,1625.4,1625.3,12.055387]
[1744538226342,0.16851468,1625.4,1625.3,13.61024791]
[1744538226545,0.02,1625.4,1625.3,14.31744791]
[1744538226734,0.7716,1626.3,1626.0,6.14978]
[1744538227038,0.7716,1626.3,1625.7,9.85838]
[1744538227039,0.14851468,1626.2,1625.9,12.27139]
[1744538227643,0.7716,1626.0,1625.9,6.121]
[1744538227851,0.7716,1626.0,1625.7,15.30204]
[1744538228012,0.7716,1626.0,1625.7,21.42304]
[1744538228207,0.15979067,1625.9,1625.7,6.121]
[1744538228945,0.15979067,1625.9,1625.7,12.27219]
[1744538229655,0.15979067,1625.9,1625.7,6.121]
[1744538229960,6.31028067,1625.9,1625.7,6.121]
[1744538230561,6.92241,1625.8,1625.7,6.121]
[1744538230858,0.7716,1625.8,1625.7,6.121]
[1744538231060,0.93139067,1625.8,1625.7,6.121]
[1744538232644,7.08220067,1625.8,1625.7,6.121]
[1744538234027,0.93139067,1625.8,1625.7,6.121]
[1744538234831,7.08220067,1625.8,1625.7,6.121]
[1744538235032,0.93139067,1625.8,1625.7,6.121]
[1744538235331,6.15146,1625.7,1625.4,6.12]
[1744538235527,0.15857698,1625.6,1625.4,6.12]
[1744538235751,0.8016,1625.5,1625.4,6.12]
[1744538236063,0.96017698,1625.5,1625.4,16.27233]
[1744538236562,0.8016,1625.5,1625.4,16.27233]
[1744538236763,6.95299,1625.7,1625.4,22.05132359]
[1744538236973,0.15857698,1625.6,1625.4,16.27233]
[1744538237142,6.95299,1625.7,1625.4,12.27233]
[1744538237338,0.15857698,1625.6,1625.4,12.27233]
[1744538237540,6.95299,1625.7,1625.4,12.27233]
[1744538237740,0.15857698,1625.6,1625.4,12.27233]
[1744538238041,13.10441,1625.7,1625.4,12.27233]
[1744538238372,0.15857698,1625.6,1625.4,12.27233]
[1744538238572,6.95299,1625.7,1625.4,12.27233]
[1744538238761,0.15857698,1625.6,1625.4,12.27233]
[1744538238959,6.95299,1625.7,1625.4,6.12]
[1744538239152,6.31025698,1625.6,1625.4,6.12]
[1744538239680,12.46199698,1625.6,1625.4,6.12]
[1744538239875,6.15195,1625.5,1625.4,6.12]
[1744538240447,6.30983342,1625.5,1625.4,6.12]
[1744538240962,0.15788342,1625.5,1625.4,12.27233]
[1744538241277,13.10425,1625.7,1625.4,18.4172896]
[1744538241454,13.10425,1625.7,1625.4,6.12]
[1744538241655,6.30946342,1625.6,1625.4,6.12]
[1744538242645,0.15788342,1625.6,1625.4,6.12]
[1744538242975,0.15788342,1625.5,1625.4,6.12]
[1744538243178,13.10426,1625.7,1625.4,6.12]
[1744538243379,0.15788342,1625.5,1625.4,6.12]
[1744538243679,13.10426,1625.7,1625.4,12.2723]
[1744538243882,0.15788342,1625.5,1625.4,6.12]
[1744538244074,6.15158,1625.6,1625.4,6.12]
[1744538244277,0.15788342,1625.5,1625.4,6.12]
[1744538245056,0.93188342,1625.5,1625.4,6.12]
[1744538246775,0.93188342,1625.5,1625.4,12.27233]
[1744538246942,0.15788342,1625.5,1625.4,12.27233]
[1744538248151,0.15788342,1625.5,1625.4,6.12]
[1744538249263,0.15788342,1625.5,1625.4,13.499584]
[1744538249544,0.8162,1625.7,1625.5,6.15195]
[1744538249779,0.15788342,1625.6,1625.4,13.499584]
[1744538250085,0.02,1626.4,1626.3,6.14892]
[1744538250265,0.02,1626.4,1626.3,6.123]
[1744538250685,6.90513,1626.3,1625.9,6.123]
[1744538250848,0.756,1626.3,1626.0,6.14984]
[1744538251045,6.14936,1626.2,1625.9,6.123]
[1744538251860,6.15003,1626.1,1625.8,52.75]
[1744538252077,6.90607,1626.0,1625.8,52.75]
[1744538252278,14.36206,1626.0,1625.7,6.123]
[1744538252459,13.05645,1626.0,1625.7,6.123]
[1744538252853,6.15081,1625.8,1625.7,6.123]
[1744538253083,6.15081,1625.8,1625.5,6.15194]
[1744538253253,6.15067,1625.9,1625.5,12.27494]
[1744538253857,6.15067,1625.9,1625.5,18.42668]
[1744538254186,6.15067,1625.9,1625.6,0.2607417]
[1744538254681,12.30144,1625.9,1625.5,12.27474]
[1744538255181,6.15083,1625.8,1625.5,6.123]
[1744538255772,6.15083,1625.8,1625.6,0.26074877]
[1744538256282,6.15083,1625.8,1625.5,12.27495]
[1744538256997,6.15083,1625.8,1625.5,6.123]
[1744538257164,6.15083,1625.8,1625.5,12.27494]
[1744538257363,6.15083,1625.8,1625.6,0.2607691]
[1744538257565,0.12092748,1625.7,1625.6,0.2607691]
[1744538257765,0.12092748,1625.7,1625.5,12.27494]
[1744538258084,6.15084,1625.8,1625.5,12.27494]
[1744538258257,0.12092748,1625.6,1625.5,12.27494]
[1744538258449,6.15084,1625.8,1625.5,12.27494]
[1744538258649,0.12092748,1625.6,1625.5,12.27494]
[1744538258884,6.15084,1625.8,1625.5,12.53577264]
[1744538259086,0.12092748,1625.6,1625.5,12.53577264]
[1744538259260,6.15157,1625.6,1625.5,6.38383264]
[1744538259456,0.12092748,1625.6,1625.5,6.38383264]
[1744538259784,0.12092748,1625.6,1625.5,12.53564264]
[1744538259984,13.606874,1625.9,1625.5,12.53564264]
[1744538260186,0.12092748,1625.6,1625.5,12.53564264]
[1744538260394,6.15081,1625.8,1625.5,12.53564264]
[1744538260579,0.12092748,1625.6,1625.5,18.42662]
[1744538260761,12.30128,1625.9,1625.5,18.42662]
[1744538260951,0.12092748,1625.8,1625.5,12.27481]
[1744538261158,0.12092748,1625.8,1625.6,12.30302]
[1744538261383,6.9061,1626.0,1625.6,12.30302]
[1744538261593,0.12092748,1625.7,1625.6,12.30302]
[1744538261772,6.15054,1625.9,1625.6,6.15145]
[1744538262086,0.12092748,1625.7,1625.6,6.15145]
[1744538262263,6.9061,1626.0,1625.6,12.30286]
[1744538262462,0.12092748,1625.7,1625.6,13.01006]
[1744538262667,13.05638,1626.0,1625.6,13.01006]
[1744538262870,0.12092748,1625.7,1625.6,13.01006]
[1744538263066,13.05638,1626.0,1625.6,13.01006]
[1744538263271,0.12092748,1625.7,1625.6,13.01006]
[1744538263471,6.9061,1626.0,1625.6,13.01006]
[1744538263668,0.12092748,1625.7,1625.6,13.01006]
[1744538263874,6.9061,1626.0,1625.6,0.7072]
[1744538263875,6.1506,1625.9,1625.6,0.7072]
[1744538264090,6.15088,1625.8,1625.5,12.98207]
[1744538264404,6.27180748,1625.8,1625.5,12.98197]
[1744538264614,0.12092748,1625.8,1625.6,0.26082387]
[1744538264764,0.12092748,1625.8,1625.6,6.15138]
[1744538265472,6.27185748,1625.8,1625.5,12.98214]
[1744538265887,0.12092748,1625.8,1625.6,0.26087611]
[1744538266087,0.12092748,1625.8,1625.6,6.41241611]
[1744538266298,6.27179748,1625.8,1625.5,12.2748]
[1744538266900,6.27179748,1625.8,1625.5,18.42659]
[1744538267090,0.12092748,1625.8,1625.6,6.15156]
[1744538267594,0.12092748,1625.8,1625.5,12.27479]
[1744538267789,0.12092748,1625.8,1625.6,6.15144]
[1744538268165,0.12283681,1625.7,1625.6,6.15144]
[1744538268394,12.30105,1625.9,1625.6,6.15144]
[1744538268592,0.12283681,1625.7,1625.6,6.15144]
[1744538268782,0.12283681,1625.7,1625.6,6.41233301]
[1744538268989,6.15044,1625.9,1625.6,6.41233301]
[1744538269200,1.305658,1625.9,1625.6,0.26089301]
[1744538269511,12.30259,1625.7,1625.3,9.15252]
[1744538269682,12.30259,1625.7,1625.3,15.30511]
[1744538269880,12.30259,1625.7,1625.4,0.26094992]
[1744538270195,0.12283681,1625.6,1625.4,0.26094992]
[1744538270399,12.30259,1625.7,1625.3,15.30511]
[1744538270796,6.15159,1625.6,1625.3,9.15252]
[1744538270967,0.761,1625.5,1625.3,9.15252]
[1744538271869,6.91297,1625.5,1625.3,3.0]
[1744538272204,0.12344437,1625.4,1625.3,3.0]
[1744538272503,6.15271,1625.3,1625.2,11.137]
[1744538272804,0.12344437,1625.4,1625.3,6.15271]
[1744538272971,0.761,1625.5,1625.3,6.15271]
[1744538273171,0.761,1625.5,1625.2,12.28996]
[1744538273379,0.761,1625.5,1625.2,14.134294]
[1744538273584,0.761,1625.5,1625.3,0.26096376]
[1744538274186,0.761,1625.5,1625.3,6.15266]
[1744538274388,6.15169,1625.6,1625.3,6.15266]
[1744538274602,12.3035,1625.6,1625.2,12.99716]
[1744538274900,6.15199,1625.5,1625.3,0.26094089]
[1744538275304,12.30414,1625.5,1625.2,6.137]
[1744538275599,6.91335,1625.4,1625.2,6.137]
[1744538275974,0.761,1625.4,1625.2,6.137]
[1744538276374,0.12153472,1625.3,1625.2,12.29]
[1744538276674,0.1,1625.3,1625.2,14.18015017]
[1744538276992,0.22153472,1625.3,1625.2,14.18015017]
[1744538277193,0.1,1625.3,1625.2,14.18015017]
[1744538277394,0.22153472,1625.3,1625.2,14.18015017]
[1744538277569,0.1,1625.3,1625.2,14.18015017]
[1744538277769,0.1,1625.3,1625.2,6.39791907]
[1744538277971,0.21806288,1625.3,1625.2,12.55099907]
[1744538280604,0.21806288,1625.3,1625.2,6.39791907]
[1744538281206,7.12747288,1625.3,1625.2,6.39791907]
[1744538281508,0.97476288,1625.3,1625.2,6.39791907]
[1744538281698,7.12747288,1625.3,1625.2,6.137]
[1744538281898,7.72213129,1625.3,1625.2,6.137]
[1744538282205,6.15313,1625.2,1624.8,18.44694]
[1744538282603,0.11684738,1625.1,1624.9,6.15418]
[1744538282788,0.11684738,1625.1,1625.0,6.41501774]
[1744538282994,6.90947,1625.3,1625.0,6.41501774]
[1744538283206,0.11684738,1625.1,1625.0,6.86102]
[1744538283385,0.1,1625.4,1625.1,6.1533]
[1744538283591,0.11684738,1625.3,1625.1,12.30663]
[1744538283798,0.11684738,1625.3,1625.2,6.15308]
[1744538283999,0.7567,1625.5,1625.2,6.15291]
[1744538284321,0.1,1625.4,1625.3,6.15268]
[1744538284529,0.7567,1625.8,1625.6,6.15155]
[1744538284685,0.7567,1625.8,1625.5,6.15192]
[1744538284880,0.1,1625.7,1625.5,6.15177]
[1744538285085,0.1,1625.7,1625.5,7.382172]
[1744538285318,0.1,1625.7,1625.4,6.15225]
[1744538285614,0.1,1625.7,1625.4,12.30451]
[1744538286221,0.1,1625.7,1625.5,6.15183]
[1744538286880,0.1,1625.7,1625.5,6.15182]
[1744538287277,0.1,1625.7,1625.4,6.15225]
[1744538287477,0.1,1625.7,1625.5,0.26088021]
[1744538287983,0.1,1625.7,1625.5,6.15178]
[1744538289731,0.1,1625.7,1625.4,6.767435]
[1744538290020,0.1,1625.7,1625.4,12.919645]
[1744538290222,0.1,1625.7,1625.5,0.26087667]
[1744538290741,0.1,1625.7,1625.4,12.919645]
[1744538291020,0.1,1625.7,1625.6,6.15157]
[1744538291185,0.1,1625.7,1625.5,8.1507445]
[1744538291383,0.1,1625.7,1625.5,14.3025345]
[1744538291581,0.12092748,1625.6,1625.5,14.3025345]
[1744538291915,0.1,1625.7,1625.5,14.3025345]
[1744538292080,0.12092748,1625.6,1625.5,14.3025345]
[1744538292280,0.7567,1625.8,1625.5,14.3025345]
[1744538292515,0.12092748,1625.6,1625.5,14.3025345]
[1744538292682,0.1,1625.6,1625.5,14.3025345]
[1744538292884,0.22092748,1625.6,1625.5,1.9991645]
[1744538293205,0.22092748,1625.6,1625.5,2.26004416]
[1744538293394,0.22092748,1625.6,1625.5,8.41199416]
[1744538294215,0.22092748,1625.6,1625.5,1.55284416]
[1744538294525,0.22092748,1625.6,1625.5,0.26087966]
[1744538294526,7.16709748,1625.6,1625.5,0.26087966]
[1744538294815,13.31900748,1625.6,1625.2,12.29107]
[1744538295006,6.15203,1625.5,1625.2,6.138]
[1744538295179,6.94768,1625.3,1625.1,6.137]
[1744538295385,0.7946,1625.3,1625.1,6.137]
[1744538295579,6.2519,1625.6,1625.1,6.137]
[1744538295580,0.12031986,1625.2,1625.1,6.137]
[1744538295787,0.12031986,1625.2,1625.1,15.29046]
[1744538295986,0.12031986,1625.2,1625.1,15.55154009]
[1744538296194,7.07899,1625.6,1625.2,6.15308]
[1744538296195,6.15197,1625.5,1625.2,6.15308]
[1744538296409,6.15197,1625.5,1625.3,0.26108009]
[1744538296598,0.12023306,1625.4,1625.3,0.26108009]
[1744538297927,13.23074,1625.6,1625.3,0.26108009]
[1744538298102,0.1191913,1625.4,1625.1,17.46089401]
[1744538298303,6.152,1625.5,1625.1,23.61421401]
[1744538298304,6.15206,1625.5,1625.1,23.61421401]
[1744538298513,12.30423,1625.5,1625.2,2.3614214]
[1744538298715,6.15206,1625.5,1625.2,0.26110889]
[1744538298915,6.15206,1625.5,1625.2,6.41405889]
[1744538299119,6.15206,1625.5,1625.3,0.26110889]
[1744538299505,7.07895,1625.6,1625.3,6.41380889]
[1744538299814,13.23071,1625.6,1625.2,6.15295]
[1744538299998,12.30409,1625.5,1625.2,8.297288]
[1744538300193,6.15195,1625.5,1625.2,2.144338]
[1744538300410,12.3041,1625.5,1625.2,2.144338]
[1744538300752,12.3041,1625.5,1625.3,0.26110618]
[1744538301229,12.3041,1625.5,1625.2,2.144338]
[1744538301625,6.15243,1625.4,1625.2,2.144338]
[1744538301831,6.15271,1625.3,1625.1,6.137]
[1744538301997,12.30568,1625.3,1625.1,6.137]
[1744538302198,6.15271,1625.3,1625.1,6.137]
[1744538302698,13.08577,1625.3,1625.1,6.137]
[1744538303196,0.1,1625.2,1625.1,6.137]
[1744538303393,0.1,1625.2,1625.1,6.39810388]
[1744538303821,0.1,1625.2,1625.1,13.87747327]
[1744538304635,0.1,1625.2,1625.1,7.72401327]
[1744538305451,6.25308,1625.2,1625.1,6.39810388]
[1744538305625,0.1,1625.2,1625.1,6.39810388]
[1744538305807,0.9235,1625.2,1625.1,6.39810388]
[1744538306214,0.1,1625.2,1625.1,6.39810388]
[1744538306935,6.25308,1625.2,1625.1,6.39810388]
[1744538307141,0.1,1625.2,1625.1,6.39810388]
[1744538310840,0.1,1625.2,1625.1,12.55156388]
[1744538311040,0.1,1625.2,1625.1,14.42208427]
[1744538311451,6.15242,1625.4,1625.1,20.57554427]
[1744538311741,12.30495,1625.4,1625.1,12.29046]
[1744538311938,0.1,1625.3,1625.1,12.29046]
[1744538312536,0.8247,1625.2,1625.0,6.15373]
[1744538312708,0.8247,1625.2,1625.0,12.28173]
[1744538312914,0.8247,1625.2,1625.1,0.26089773]
[1744538313114,6.97744,1625.3,1625.1,0.26089773]
[1744538313347,0.1,1625.2,1625.1,0.26089773]
[1744538313548,0.1,1625.2,1625.1,1.86963277]
[1744538314417,0.1,1625.2,1625.1,2.13050644]
[1744538315337,0.1,1625.2,1625.1,0.26087367]
[1744538317947,0.1,1625.2,1625.0,6.128]
[1744538318520,6.25313,1625.2,1625.0,6.128]
[1744538320315,6.25313,1625.2,1624.9,6.128]
[1744538320519,6.96338,1625.1,1625.0,0.26065744]
[1744538320719,0.8097,1625.1,1625.0,0.26065744]
[1744538321232,0.9097,1625.1,1625.0,0.26065744]
[1744538322358,0.1,1625.1,1625.0,6.41449744]
[1744538322534,0.1,1625.1,1625.0,8.35487018]
[1744538324065,6.97023,1625.5,1625.1,6.15345]
[1744538324232,13.1225,1625.5,1625.1,12.3069]
[1744538324425,0.1,1625.4,1625.1,12.3069]
[1744538324625,0.1,1625.4,1625.2,0.26065744]
[1744538324837,6.25238,1625.4,1625.2,0.26065744]
[1744538325161,6.25238,1625.4,1625.1,6.41396744]
[1744538325520,0.1,1625.4,1625.2,6.41368744]
[1744538326043,0.1,1625.4,1625.1,12.30663]
[1744538326441,6.25242,1625.4,1625.1,6.15331]
[1744538326641,0.1,1625.4,1625.1,12.30665]
[1744538326855,0.1,1625.4,1625.2,6.41395942]
[1744538327457,0.1,1625.4,1625.3,0.26091942]
[1744538328038,0.1,1625.4,1625.2,0.26091942]
[1744538328455,0.1,1625.4,1625.3,0.26091942]
[1744538328825,13.03255,1625.8,1625.4,6.15217]
[1744538329028,13.07365,1625.8,1625.4,6.15217]
[1744538329563,0.1,1625.7,1625.4,6.15217]
[1744538329749,6.25131,1625.7,1625.3,13.58923794]
[1744538330056,0.1,1625.7,1625.5,6.41270366]
[1744538330560,0.1,1625.7,1625.5,6.15178]
[1744538330791,0.1,1625.7,1625.5,12.30361]
[1744538331067,0.1,1625.7,1625.6,0.26088128]
[1744538331434,0.1,1625.7,1625.4,1.35892379]
[1744538331435,6.25119,1625.7,1625.4,1.35892379]
[1744538332059,6.25119,1625.7,1625.5,0.26084172]
[1744538332558,6.25119,1625.7,1625.4,7.51116379]
[1744538332754,0.1,1625.7,1625.5,6.90305638]
[1744538333066,0.1,1625.7,1625.5,13.05499638]
[1744538333368,0.1,1625.7,1625.5,6.90305638]
[1744538333681,0.1,1625.7,1625.5,13.05483638]
[1744538333826,0.7664,1626.0,1625.8,6.1508]
[1744538334025,6.91621,1626.1,1625.8,6.1508]
[1744538334431,0.1,1626.0,1625.8,6.1508]
[1744538336264,0.1,1626.0,1625.7,18.38914]
[1744538336562,6.96379,1625.9,1625.7,6.087]
[1744538337063,6.15081,1625.8,1625.7,6.087]
[1744538337271,6.96377,1625.9,1625.7,6.087]
[1744538337648,6.96376,1625.9,1625.7,6.087]
[1744538337945,13.11439,1625.9,1625.7,6.087]
[1744538338568,6.15081,1625.8,1625.7,6.087]
[1744538338775,6.96444,1625.7,1625.4,6.086]
[1744538339146,6.15171,1625.6,1625.4,6.086]
[1744538339351,6.96433,1625.7,1625.4,6.086]
[1744538339553,13.1157,1625.7,1625.4,12.23829]
[1744538339776,13.1157,1625.7,1625.4,6.086]
[1744538340241,6.96433,1625.7,1625.4,12.23828]
[1744538340972,13.11584,1625.7,1625.4,6.086]
[1744538341340,0.8131,1625.7,1625.4,18.39034]
[1744538341940,6.97191,1625.8,1625.4,14.077204]
[1744538342172,13.1229,1625.8,1625.5,6.1519]
[1744538342373,6.97191,1625.8,1625.5,6.1519]
[1744538342754,13.12303,1625.8,1625.4,20.229404]
[1744538342953,13.12293,1625.8,1625.5,7.0392305]
[1744538343354,13.12293,1625.8,1625.5,6.15192]
[1744538343555,6.97191,1625.8,1625.5,6.15192]
[1744538344145,0.821,1625.8,1625.5,12.30372]
[1744538344368,6.97148,1625.9,1625.6,6.15145]
[1744538344677,6.97148,1625.9,1625.6,6.15143]
[1744538345043,6.97148,1625.9,1625.6,12.30286]
[1744538345241,13.11999,1626.2,1625.8,6.15052]
[1744538345456,13.11999,1626.2,1625.8,6.086]
[1744538345457,6.14989,1626.1,1625.8,6.086]
[1744538345657,0.1,1626.0,1625.8,6.086]
[1744538346041,0.1,1626.0,1625.8,12.23681]
[1744538346248,0.1,1626.0,1625.8,12.23668]
[1744538346771,0.1,1626.0,1625.8,6.086]
[1744538346947,13.025507,1626.0,1625.8,6.086]
[1744538347149,6.875127,1626.0,1625.8,6.086]
[1744538348446,13.025457,1626.0,1625.8,6.086]
[1744538348649,6.90913,1625.9,1625.8,6.086]
[1744538349050,8.2875557,1625.9,1625.8,6.086]
[1744538350292,8.2875557,1625.9,1625.5,12.94499]
[1744538350493,6.15131,1625.7,1625.4,6.15229]
[1744538350695,6.2509,1625.8,1625.4,6.1522]
[1744538350904,6.15122,1625.7,1625.4,12.2382]
[1744538351701,0.7698,1625.6,1625.4,6.086]
[1744538351996,6.92162,1625.6,1625.4,6.086]
[1744538352375,13.17165,1625.8,1625.4,12.23818]
[1744538352590,6.15121,1625.7,1625.4,12.23818]
[1744538354672,0.8698,1625.8,1625.5,6.15173]
[1744538354872,7.02068,1625.8,1625.5,6.15173]
[1744538355087,8.47563557,1625.8,1625.5,6.15173]
[1744538355485,14.62677557,1625.8,1625.4,12.23829]
[1744538355686,14.62677557,1625.8,1625.4,18.39048]
[1744538356086,14.62677557,1625.8,1625.5,0.26078572]
[1744538356504,14.62677557,1625.8,1625.4,12.23819]
[1744538356804,6.15134,1625.7,1625.4,6.086]
[1744538357004,6.15157,1625.6,1625.4,6.086]
[1744538357205,6.15134,1625.7,1625.5,0.2608766]
[1744538357573,6.15134,1625.7,1625.4,12.23815]
[1744538357980,0.7698,1625.8,1625.3,6.85984]
[1744538358181,6.1517,1625.6,1625.4,6.086]
[1744538358404,6.15195,1625.5,1625.4,6.34694481]
[1744538358610,6.95365,1625.5,1625.4,0.26094481]
[1744538358808,6.15262,1625.4,1625.1,58.835]
[1744538358996,12.30524,1625.4,1625.1,58.835]
[1744538359177,0.1,1625.3,1625.1,58.835]
[1744538360611,12.40563,1625.3,1625.1,58.835]
[1744538360915,12.40574,1625.3,1625.1,58.835]
[1744538361210,12.40574,1625.3,1625.1,6.086]
[1744538361211,6.15308,1625.2,1625.1,6.086]
[1744538361874,8.185814,1625.3,1624.9,6.15406]
[1744538362107,2.033074,1625.3,1625.0,6.41457935]
[1744538362305,6.15236,1625.4,1625.1,6.15344]
[1744538362306,0.1,1625.2,1625.1,6.15344]
[1744538362474,0.1,1625.2,1625.1,6.41420935]
[1744538363209,0.1,1625.2,1625.1,0.26076935]